[Event "Early-Titled-Tuesday-Blitz-May-28-2024"]
[Site "Chess.com"]
[Date "2024.05.28"]
[Round "8"]
[White "RobertoJBM"]
[Black "Kotofeyca"]
[Result "1-0"]
[WhiteElo "2778"]
[BlackElo "2518"]
[TimeControl "180+1"]
[EndTime "9:29:43 PDT"]
[Termination "RobertoJBM won on time"]

1. d4 {[%clk 0:03:00.9]} 1... d5 {[%clk 0:02:57.9]} 2. Nf3 {[%clk 0:03:00.9]}
2... c6 {[%clk 0:02:58.8]} 3. e3 {[%clk 0:03:00.9]} 3... Nf6 {[%clk 0:02:59.7]}
4. Be2 {[%clk 0:03:01.7]} 4... Bg4 {[%clk 0:02:59.4]} 5. O-O {[%clk 0:03:02.6]}
5... e6 {[%clk 0:02:59.8]} 6. b3 {[%clk 0:03:02.9]} 6... Be7 {[%clk 0:02:57.6]}
7. Ba3 {[%clk 0:03:02.5]} 7... O-O {[%clk 0:02:53.2]} 8. Qc1 {[%clk 0:03:02.5]}
8... Ne4 {[%clk 0:02:47.3]} 9. Re1 {[%clk 0:03:02]} 9... Nd7 {[%clk 0:02:41.7]}
10. c4 {[%clk 0:03:01.5]} 10... dxc4 {[%clk 0:02:13.1]} 11. Bxe7 {[%clk
0:02:52.5]} 11... Qxe7 {[%clk 0:02:11.9]} 12. Qxc4 {[%clk 0:02:52.7]} 12... Rac8
{[%clk 0:01:46.7]} 13. Nbd2 {[%clk 0:02:52.3]} 13... Nxd2 {[%clk 0:01:43.9]} 14.
Nxd2 {[%clk 0:02:53.2]} 14... Nb6 {[%clk 0:01:36.7]} 15. Qc5 {[%clk 0:02:46]}
15... Qxc5 {[%clk 0:01:16.7]} 16. dxc5 {[%clk 0:02:46.9]} 16... Bxe2 {[%clk
0:01:16.8]} 17. cxb6 {[%clk 0:02:45.2]} 17... Bh5 {[%clk 0:00:56.9]} 18. bxa7
{[%clk 0:02:43.9]} 18... Ra8 {[%clk 0:00:57.4]} 19. f3 {[%clk 0:02:41.8]} 19...
Rxa7 {[%clk 0:00:56.4]} 20. Nc4 {[%clk 0:02:37.6]} 20... Rd8 {[%clk 0:00:49.9]}
21. Red1 {[%clk 0:02:35.5]} 21... Raa8 {[%clk 0:00:43.1]} 22. Nb6 {[%clk
0:02:31.8]} 22... Rab8 {[%clk 0:00:39.3]} 23. e4 {[%clk 0:02:29.3]} 23... e5
{[%clk 0:00:34.8]} 24. Nd7 {[%clk 0:02:27.1]} 24... Ra8 {[%clk 0:00:27.7]} 25.
Nxe5 {[%clk 0:02:26.9]} 25... Rxd1+ {[%clk 0:00:21.8]} 26. Rxd1 {[%clk
0:02:26.4]} 26... f6 {[%clk 0:00:22.7]} 27. Nc4 {[%clk 0:02:20.4]} 27... Rxa2
{[%clk 0:00:19.5]} 28. Rd8+ {[%clk 0:02:20]} 28... Kf7 {[%clk 0:00:20.1]} 29.
Rd7+ {[%clk 0:02:19.5]} 29... Kf8 {[%clk 0:00:20.5]} 30. Rxb7 {[%clk 0:02:16.8]}
30... Bf7 {[%clk 0:00:19.2]} 31. Nd6 {[%clk 0:02:05.5]} 31... Be6 {[%clk
0:00:17.2]} 32. h4 {[%clk 0:01:52.8]} 32... Rb2 {[%clk 0:00:17.2]} 33. b4 {[%clk
0:01:51.2]} 33... h5 {[%clk 0:00:11.9]} 34. b5 {[%clk 0:01:22.3]} 34... cxb5
{[%clk 0:00:11.5]} 35. Nxb5 {[%clk 0:01:23]} 35... Bc4 {[%clk 0:00:08.6]} 36.
Nd6 {[%clk 0:01:21.1]} 36... Rxb7 {[%clk 0:00:07.8]} 37. Nxb7 {[%clk 0:01:22]}
37... Bb5 {[%clk 0:00:05.6]} 38. Kf2 {[%clk 0:01:21.7]} 38... Bc6 {[%clk
0:00:05.9]} 39. Nc5 {[%clk 0:01:19.7]} 39... Ke7 {[%clk 0:00:05.4]} 40. Ke3
{[%clk 0:01:20.1]} 40... g6 {[%clk 0:00:04]} 41. Nd3 {[%clk 0:01:20.2]} 41...
Ke6 {[%clk 0:00:02.6]} 42. Nf4+ {[%clk 0:01:20.2]} 42... Kf7 {[%clk 0:00:02.9]}
43. g3 {[%clk 0:01:19.8]} 43... Bb5 {[%clk 0:00:03.1]} 44. Ne2 {[%clk
0:01:19.2]} 44... Ba4 {[%clk 0:00:03.5]} 45. Nc3 {[%clk 0:01:19]} 45... Bb3
{[%clk 0:00:03.2]} 46. Kf4 {[%clk 0:01:18.9]} 46... Bc4 {[%clk 0:00:03.1]} 47.
g4 {[%clk 0:01:15.4]} 47... hxg4 {[%clk 0:00:02.7]} 48. fxg4 {[%clk 0:01:16.3]}
48... Bb3 {[%clk 0:00:02.1]} 49. g5 {[%clk 0:01:16.6]} 49... fxg5+ {[%clk
0:00:01.1]} 50. hxg5 {[%clk 0:01:16.4]} 50... Ke6 {[%clk 0:00:01.5]} 51. Ne2
{[%clk 0:01:16.5]} 51... Ba2 {[%clk 0:00:00.4]} 52. Nd4+ {[%clk 0:01:17.4]} 1-0

[Event "Early-Titled-Tuesday-Blitz-May-28-2024"]
[Site "Chess.com"]
[Date "2024.05.28"]
[Round "8"]
[White "Polish_fighter3000"]
[Black "Zhigalko_Sergei"]
[Result "1-0"]
[WhiteElo "3105"]
[BlackElo "2895"]
[TimeControl "180+1"]
[EndTime "9:29:46 PDT"]
[Termination "Polish_fighter3000 won by checkmate"]

1. e4 {[%clk 0:03:00.9]} 1... c5 {[%clk 0:03:00.2]} 2. Nc3 {[%clk 0:03:01.1]}
2... Nc6 {[%clk 0:03:00.8]} 3. Bb5 {[%clk 0:03:01.1]} 3... Nd4 {[%clk
0:03:01.2]} 4. Bc4 {[%clk 0:02:59.4]} 4... e6 {[%clk 0:03:00.6]} 5. Nge2 {[%clk
0:02:59]} 5... Nf6 {[%clk 0:03:00.8]} 6. O-O {[%clk 0:02:56.8]} 6... a6 {[%clk
0:03:01]} 7. d3 {[%clk 0:02:35.3]} 7... b5 {[%clk 0:02:57.5]} 8. Bb3 {[%clk
0:02:35.8]} 8... Nxb3 {[%clk 0:02:55.3]} 9. axb3 {[%clk 0:02:36.7]} 9... b4
{[%clk 0:02:46]} 10. Na4 {[%clk 0:02:09.9]} 10... Bb7 {[%clk 0:02:45.4]} 11. Bg5
{[%clk 0:02:05.8]} 11... d6 {[%clk 0:02:41.7]} 12. Ng3 {[%clk 0:01:46.1]} 12...
Be7 {[%clk 0:02:40.8]} 13. f4 {[%clk 0:01:40.8]} 13... h6 {[%clk 0:02:34.2]} 14.
Bh4 {[%clk 0:01:41]} 14... g6 {[%clk 0:01:41.6]} 15. Qe1 {[%clk 0:01:32.2]}
15... g5 {[%clk 0:01:05.3]} 16. fxg5 {[%clk 0:01:31.1]} 16... Ng4 {[%clk
0:01:05.5]} 17. g6 {[%clk 0:01:14.7]} 17... Bxh4 {[%clk 0:00:57.8]} 18. Rxf7
{[%clk 0:01:14.1]} 18... Be7 {[%clk 0:00:26.1]} 19. Qe2 {[%clk 0:00:44.4]} 19...
Ne5 {[%clk 0:00:25.9]} 20. Rg7 {[%clk 0:00:43.6]} 20... Kd7 {[%clk 0:00:19.3]}
21. Nh5 {[%clk 0:00:32.5]} 21... Bc6 {[%clk 0:00:15.6]} 22. c3 {[%clk
0:00:26.6]} 22... Bb5 {[%clk 0:00:14]} 23. Qe3 {[%clk 0:00:20.5]} 23... bxc3
{[%clk 0:00:12.4]} 24. bxc3 {[%clk 0:00:20.6]} 24... Nxd3 {[%clk 0:00:10.6]} 25.
Rd1 {[%clk 0:00:18.5]} 25... Bxa4 {[%clk 0:00:10.4]} 26. Qxd3 {[%clk 0:00:18.6]}
26... Kc6 {[%clk 0:00:01.7]} 27. bxa4 {[%clk 0:00:18.1]} 27... Qb6 {[%clk
0:00:01.6]} 28. Rxe7 {[%clk 0:00:17.8]} 28... Rhf8 {[%clk 0:00:01.1]} 29. Qxd6#
{[%clk 0:00:17]} 1-0

[Event "Early-Titled-Tuesday-Blitz-May-28-2024"]
[Site "Chess.com"]
[Date "2024.05.28"]
[Round "8"]
[White "Yan_Dyomin2010"]
[Black "Gryffindorac8"]
[Result "0-1"]
[WhiteElo "2587"]
[BlackElo "2480"]
[TimeControl "180+1"]
[EndTime "9:29:48 PDT"]
[Termination "Gryffindorac8 won by resignation"]

1. e4 {[%clk 0:03:00.9]} 1... c5 {[%clk 0:02:59.2]} 2. Nf3 {[%clk 0:03:00.3]}
2... d6 {[%clk 0:02:59.4]} 3. d4 {[%clk 0:03:00.5]} 3... cxd4 {[%clk 0:03:00.3]}
4. Nxd4 {[%clk 0:02:59.9]} 4... Nf6 {[%clk 0:03:00.9]} 5. Nc3 {[%clk 0:03:00.3]}
5... a6 {[%clk 0:03:01.2]} 6. h3 {[%clk 0:03:00]} 6... e5 {[%clk 0:03:00.9]} 7.
Nf3 {[%clk 0:03:00.2]} 7... Be7 {[%clk 0:02:55.9]} 8. g4 {[%clk 0:03:00]} 8...
h6 {[%clk 0:02:46.2]} 9. Rg1 {[%clk 0:02:59.5]} 9... Nbd7 {[%clk 0:02:36.1]} 10.
g5 {[%clk 0:02:58]} 10... hxg5 {[%clk 0:02:34.3]} 11. Nxg5 {[%clk 0:02:58.9]}
11... Nc5 {[%clk 0:02:27.6]} 12. Bc4 {[%clk 0:02:55.9]} 12... O-O {[%clk
0:01:53.7]} 13. Be3 {[%clk 0:02:49.8]} 13... b5 {[%clk 0:01:43.7]} 14. Bd5
{[%clk 0:02:47.9]} 14... Nxd5 {[%clk 0:01:36.4]} 15. Nxd5 {[%clk 0:02:44.2]}
15... Ne6 {[%clk 0:00:53.2]} 16. Qh5 {[%clk 0:02:16.7]} 16... Nxg5 {[%clk
0:00:41.5]} 17. Nxe7+ {[%clk 0:01:33.8]} 17... Qxe7 {[%clk 0:00:37.5]} 18. Bxg5
{[%clk 0:01:34.7]} 18... f6 {[%clk 0:00:23]} 19. Bh6 {[%clk 0:01:33.9]} 19...
Rf7 {[%clk 0:00:23.2]} 20. O-O-O {[%clk 0:01:32.9]} 20... Be6 {[%clk 0:00:20.4]}
21. Rg3 {[%clk 0:01:32.2]} 21... Qf8 {[%clk 0:00:15.3]} 22. Rdg1 {[%clk
0:01:31.3]} 22... Raa7 {[%clk 0:00:15.6]} 23. f4 {[%clk 0:01:23.5]} 23... exf4
{[%clk 0:00:14.3]} 24. Bxf4 {[%clk 0:01:24.4]} 24... d5 {[%clk 0:00:11.9]} 25.
exd5 {[%clk 0:01:23.3]} 25... Bc8 {[%clk 0:00:09.5]} 26. Rg6 {[%clk 0:01:23.6]}
26... Qc5 {[%clk 0:00:04.9]} 27. Qe2 {[%clk 0:01:08.2]} 27... Qxd5 {[%clk
0:00:03.2]} 28. Rd1 {[%clk 0:00:54.8]} 28... Qc6 {[%clk 0:00:02.7]} 29. Bh6
{[%clk 0:00:44.9]} 29... Rf8 {[%clk 0:00:02.3]} 30. Rdg1 {[%clk 0:00:42.6]}
30... Rff7 {[%clk 0:00:01.8]} 31. Qe3 {[%clk 0:00:38.3]} 31... Rae7 {[%clk
0:00:02.1]} 32. Qg3 {[%clk 0:00:36.1]} 32... Bf5 {[%clk 0:00:02.4]} 33. Qc3
{[%clk 0:00:28.3]} 33... Qxc3 {[%clk 0:00:02.2]} 34. bxc3 {[%clk 0:00:26.9]}
34... Bxg6 {[%clk 0:00:03.1]} 35. Rxg6 {[%clk 0:00:27.3]} 35... Kh7 {[%clk
0:00:03.8]} 0-1

[Event "Early-Titled-Tuesday-Blitz-May-28-2024"]
[Site "Chess.com"]
[Date "2024.05.28"]
[Round "8"]
[White "remyrushbrooke"]
[Black "Al_Shima"]
[Result "0-1"]
[WhiteElo "2284"]
[BlackElo "2487"]
[TimeControl "180+1"]
[EndTime "9:29:48 PDT"]
[Termination "Al_Shima won by resignation"]

1. d4 {[%clk 0:03:00.9]} 1... Nf6 {[%clk 0:02:59.7]} 2. Nc3 {[%clk 0:03:01.2]}
2... d5 {[%clk 0:02:57.6]} 3. Bg5 {[%clk 0:03:01.1]} 3... h6 {[%clk 0:02:54.2]}
4. Bxf6 {[%clk 0:03:00.9]} 4... gxf6 {[%clk 0:02:54.8]} 5. e3 {[%clk 0:03:01.5]}
5... c5 {[%clk 0:02:54.1]} 6. dxc5 {[%clk 0:03:00]} 6... e6 {[%clk 0:02:54.3]}
7. b4 {[%clk 0:02:57.8]} 7... Nc6 {[%clk 0:02:53]} 8. Bb5 {[%clk 0:02:56.4]}
8... Qc7 {[%clk 0:02:45.1]} 9. Nge2 {[%clk 0:02:52.4]} 9... a5 {[%clk
0:02:40.6]} 10. a3 {[%clk 0:02:43.5]} 10... Bd7 {[%clk 0:02:40.5]} 11. Bxc6
{[%clk 0:02:43]} 11... Bxc6 {[%clk 0:02:41.4]} 12. O-O {[%clk 0:02:37.8]} 12...
b6 {[%clk 0:02:40.4]} 13. b5 {[%clk 0:02:34]} 13... Bd7 {[%clk 0:02:34.4]} 14.
c6 {[%clk 0:02:33.8]} 14... Bc8 {[%clk 0:02:34.9]} 15. Qd4 {[%clk 0:02:32.1]}
15... Bc5 {[%clk 0:02:30.3]} 16. Qxf6 {[%clk 0:02:29.8]} 16... Rg8 {[%clk
0:02:29]} 17. Nf4 {[%clk 0:02:06.5]} 17... Bd6 {[%clk 0:02:25.9]} 18. Rad1
{[%clk 0:01:59]} 18... Ra7 {[%clk 0:01:40.3]} 19. Kh1 {[%clk 0:01:47.5]} 19...
Be5 {[%clk 0:01:38.4]} 20. Qxh6 {[%clk 0:00:56.4]} 20... Bxc3 {[%clk 0:01:38.2]}
21. Rd3 {[%clk 0:00:48.3]} 21... Be5 {[%clk 0:01:38.1]} 22. Rfd1 {[%clk
0:00:43.3]} 22... Qe7 {[%clk 0:01:16.6]} 23. Nh5 {[%clk 0:00:21.7]} 23... Kd8
{[%clk 0:00:31.9]} 24. f4 {[%clk 0:00:20.9]} 24... Rh8 {[%clk 0:00:30.4]} 25.
Rxd5+ {[%clk 0:00:17]} 25... exd5 {[%clk 0:00:26.5]} 26. Rxd5+ {[%clk
0:00:17.4]} 26... Kc7 {[%clk 0:00:26.9]} 27. Rxe5 {[%clk 0:00:08.5]} 27... Qxe5
{[%clk 0:00:27]} 28. fxe5 {[%clk 0:00:04.6]} 28... Rxh6 {[%clk 0:00:26.8]} 29.
Nf6 {[%clk 0:00:04.5]} 29... Rxf6 {[%clk 0:00:25.1]} 30. exf6 {[%clk 0:00:04.3]}
30... Bf5 {[%clk 0:00:21.2]} 31. h4 {[%clk 0:00:03.4]} 31... Ra8 {[%clk
0:00:21.4]} 32. g4 {[%clk 0:00:03.9]} 32... Bxg4 {[%clk 0:00:21.5]} 33. Kg2
{[%clk 0:00:03.9]} 33... Bf5 {[%clk 0:00:22]} 0-1

[Event "Early-Titled-Tuesday-Blitz-May-28-2024"]
[Site "Chess.com"]
[Date "2024.05.28"]
[Round "8"]
[White "Adar_07"]
[Black "rasmussvane"]
[Result "0-1"]
[WhiteElo "2769"]
[BlackElo "2950"]
[TimeControl "180+1"]
[EndTime "9:29:49 PDT"]
[Termination "rasmussvane won on time"]

1. e4 {[%clk 0:03:00.9]} 1... c6 {[%clk 0:02:58.7]} 2. d4 {[%clk 0:03:00.2]}
2... d5 {[%clk 0:02:59.6]} 3. Nc3 {[%clk 0:02:55.3]} 3... dxe4 {[%clk
0:02:58.9]} 4. Nxe4 {[%clk 0:02:56.2]} 4... Nf6 {[%clk 0:02:59.1]} 5. Nxf6+
{[%clk 0:02:56]} 5... exf6 {[%clk 0:03:00]} 6. Bc4 {[%clk 0:02:56.2]} 6... Bd6
{[%clk 0:02:59.7]} 7. Qe2+ {[%clk 0:02:56.2]} 7... Be7 {[%clk 0:02:59.7]} 8. Nf3
{[%clk 0:02:55.7]} 8... O-O {[%clk 0:02:59.9]} 9. O-O {[%clk 0:02:56]} 9... Bd6
{[%clk 0:03:00.5]} 10. Re1 {[%clk 0:02:56]} 10... Bg4 {[%clk 0:02:54.2]} 11. Qe4
{[%clk 0:02:53.3]} 11... Bh5 {[%clk 0:02:49.3]} 12. Nh4 {[%clk 0:02:53.4]} 12...
Qd7 {[%clk 0:01:58.5]} 13. Bf4 {[%clk 0:01:54.8]} 13... Bxf4 {[%clk 0:01:51.6]}
14. Qxf4 {[%clk 0:01:55.7]} 14... Bg6 {[%clk 0:01:44.6]} 15. Bb3 {[%clk
0:01:28.2]} 15... Na6 {[%clk 0:01:41.4]} 16. Qg3 {[%clk 0:01:21.3]} 16... Qxd4
{[%clk 0:01:21.9]} 17. Nxg6 {[%clk 0:00:39.4]} 17... hxg6 {[%clk 0:01:21.9]} 18.
Qxg6 {[%clk 0:00:40.3]} 18... Nc5 {[%clk 0:01:22.4]} 19. Qg3 {[%clk 0:00:12.5]}
19... Qxb2 {[%clk 0:01:16.2]} 20. Rab1 {[%clk 0:00:10.8]} 20... Qd4 {[%clk
0:01:11.6]} 21. Rbd1 {[%clk 0:00:09.4]} 21... Qb4 {[%clk 0:00:56.1]} 22. a3
{[%clk 0:00:08.9]} 22... Qb6 {[%clk 0:00:51.5]} 23. Ba2 {[%clk 0:00:09.1]} 23...
Rad8 {[%clk 0:00:43.7]} 24. h4 {[%clk 0:00:03]} 24... Rxd1 {[%clk 0:00:39.1]}
25. Rxd1 {[%clk 0:00:03.9]} 25... Qb2 {[%clk 0:00:39.7]} 26. Bxf7+ {[%clk
0:00:02.5]} 26... Rxf7 {[%clk 0:00:25.5]} 27. Rd8+ {[%clk 0:00:01.8]} 27... Kh7
{[%clk 0:00:26]} 28. Qf3 {[%clk 0:00:01.2]} 28... Qa1+ {[%clk 0:00:19.9]} 29.
Kh2 {[%clk 0:00:01.4]} 29... Qe5+ {[%clk 0:00:20.4]} 30. g3 {[%clk 0:00:01.3]}
30... g6 {[%clk 0:00:16.8]} 0-1

[Event "Early-Titled-Tuesday-Blitz-May-28-2024"]
[Site "Chess.com"]
[Date "2024.05.28"]
[Round "8"]
[White "KononenkoD"]
[Black "guillembaches"]
[Result "1-0"]
[WhiteElo "2603"]
[BlackElo "2506"]
[TimeControl "180+1"]
[EndTime "9:29:49 PDT"]
[Termination "KononenkoD won on time"]

1. e4 {[%clk 0:03:00.6]} 1... c5 {[%clk 0:02:59.7]} 2. Nf3 {[%clk 0:03:00.5]}
2... d6 {[%clk 0:03:00.2]} 3. d4 {[%clk 0:03:00.8]} 3... cxd4 {[%clk 0:03:01.1]}
4. Nxd4 {[%clk 0:03:01.6]} 4... Nf6 {[%clk 0:03:01.8]} 5. Nc3 {[%clk 0:03:02]}
5... Nc6 {[%clk 0:03:02.5]} 6. Bc4 {[%clk 0:03:02.3]} 6... Bd7 {[%clk
0:03:02.2]} 7. Bb3 {[%clk 0:03:02.1]} 7... g6 {[%clk 0:03:00.7]} 8. f3 {[%clk
0:03:01.2]} 8... Nxd4 {[%clk 0:03:00.6]} 9. Qxd4 {[%clk 0:03:01]} 9... Bg7
{[%clk 0:03:01.2]} 10. Be3 {[%clk 0:03:00.5]} 10... O-O {[%clk 0:03:00.5]} 11.
Qd2 {[%clk 0:03:00.7]} 11... b5 {[%clk 0:03:00.7]} 12. h4 {[%clk 0:02:58.8]}
12... a5 {[%clk 0:03:00.8]} 13. a4 {[%clk 0:02:58.1]} 13... bxa4 {[%clk
0:02:59.6]} 14. Nxa4 {[%clk 0:02:57.6]} 14... h5 {[%clk 0:02:50.9]} 15. Bh6
{[%clk 0:02:36.5]} 15... Bxa4 {[%clk 0:02:40.6]} 16. Rxa4 {[%clk 0:02:32.9]}
16... Qb6 {[%clk 0:02:33.4]} 17. g4 {[%clk 0:02:29]} 17... hxg4 {[%clk
0:02:01.4]} 18. h5 {[%clk 0:02:26.6]} 18... Nxh5 {[%clk 0:02:01.4]} 19. Bxg7
{[%clk 0:01:42.3]} 19... Kxg7 {[%clk 0:01:30.6]} 20. fxg4 {[%clk 0:01:41.8]}
20... Rh8 {[%clk 0:00:53.2]} 21. gxh5 {[%clk 0:01:40.8]} 21... Rxh5 {[%clk
0:00:53.2]} 22. Rxh5 {[%clk 0:01:40.8]} 22... Qg1+ {[%clk 0:00:52.2]} 23. Ke2
{[%clk 0:01:40.6]} 23... gxh5 {[%clk 0:00:44.1]} 24. Qd4+ {[%clk 0:01:39]} 24...
Qxd4 {[%clk 0:00:42.3]} 25. Rxd4 {[%clk 0:01:39.9]} 25... h4 {[%clk 0:00:37]}
26. Kf3 {[%clk 0:01:34.5]} 26... h3 {[%clk 0:00:30.8]} 27. Kg3 {[%clk
0:01:34.2]} 27... Rh8 {[%clk 0:00:30.6]} 28. Kh2 {[%clk 0:01:34.3]} 28... Rh4
{[%clk 0:00:31.3]} 29. Ra4 {[%clk 0:01:23.9]} 29... Kg6 {[%clk 0:00:28.8]} 30.
c3 {[%clk 0:01:18.8]} 30... e6 {[%clk 0:00:25.5]} 31. Rxa5 {[%clk 0:01:18.2]}
31... Rf4 {[%clk 0:00:22.9]} 32. Kxh3 {[%clk 0:01:15]} 32... Rf2 {[%clk
0:00:22.9]} 33. Ra2 {[%clk 0:01:14.6]} 33... Kg5 {[%clk 0:00:22.2]} 34. Kg3
{[%clk 0:01:14.5]} 34... Rd2 {[%clk 0:00:20.3]} 35. Kf3 {[%clk 0:01:13.6]} 35...
Rd3+ {[%clk 0:00:18.5]} 36. Ke2 {[%clk 0:01:13.6]} 36... Rh3 {[%clk 0:00:19.2]}
37. Bc2 {[%clk 0:01:08.2]} 37... Kf4 {[%clk 0:00:18.7]} 38. Ra7 {[%clk
0:01:05.8]} 38... Rh2+ {[%clk 0:00:17.9]} 39. Kd3 {[%clk 0:01:05.5]} 39... Rh3+
{[%clk 0:00:17.7]} 40. Kc4 {[%clk 0:01:05.6]} 40... f6 {[%clk 0:00:15.9]} 41.
Rf7 {[%clk 0:01:04.2]} 41... Ke5 {[%clk 0:00:16.1]} 42. b4 {[%clk 0:01:03.7]}
42... Rh2 {[%clk 0:00:14.8]} 43. Kb3 {[%clk 0:01:03.6]} 43... Re2 {[%clk
0:00:13.5]} 44. b5 {[%clk 0:01:02.8]} 1-0

[Event "Early-Titled-Tuesday-Blitz-May-28-2024"]
[Site "Chess.com"]
[Date "2024.05.28"]
[Round "8"]
[White "Kumi29"]
[Black "Narek_Ghimoyan"]
[Result "0-1"]
[WhiteElo "2566"]
[BlackElo "2451"]
[TimeControl "180+1"]
[EndTime "9:29:58 PDT"]
[Termination "Narek_Ghimoyan won by resignation"]

1. d4 {[%clk 0:03:00.9]} 1... Nf6 {[%clk 0:02:35.8]} 2. Bg5 {[%clk 0:03:00.5]}
2... e6 {[%clk 0:02:36.6]} 3. Nd2 {[%clk 0:03:00]} 3... d5 {[%clk 0:02:35.9]} 4.
e3 {[%clk 0:03:00]} 4... c5 {[%clk 0:02:34.5]} 5. c3 {[%clk 0:02:59.9]} 5... Nc6
{[%clk 0:02:34.2]} 6. Bd3 {[%clk 0:03:00.1]} 6... h6 {[%clk 0:02:33.8]} 7. Bh4
{[%clk 0:03:00.1]} 7... Be7 {[%clk 0:02:25.5]} 8. f4 {[%clk 0:02:59.6]} 8... g5
{[%clk 0:02:16.6]} 9. fxg5 {[%clk 0:02:58.2]} 9... Nd7 {[%clk 0:02:06.5]} 10.
Ngf3 {[%clk 0:02:53.9]} 10... hxg5 {[%clk 0:02:05.1]} 11. Bg3 {[%clk 0:02:53.2]}
11... g4 {[%clk 0:01:57.7]} 12. Ng1 {[%clk 0:02:44.5]} 12... f5 {[%clk 0:01:37]}
13. Ne2 {[%clk 0:02:44.8]} 13... Bh4 {[%clk 0:01:29.2]} 14. c4 {[%clk
0:02:23.4]} 14... cxd4 {[%clk 0:01:21.4]} 15. exd4 {[%clk 0:02:22.5]} 15... Nxd4
{[%clk 0:01:16]} 16. cxd5 {[%clk 0:02:00.6]} 16... Nxe2 {[%clk 0:00:49.2]} 17.
Kxe2 {[%clk 0:02:00.5]} 17... Nc5 {[%clk 0:00:41.9]} 18. Nb3 {[%clk 0:01:29.3]}
18... Qxd5 {[%clk 0:00:39.7]} 19. Nxc5 {[%clk 0:01:25.7]} 19... Qxg2+ {[%clk
0:00:35.2]} 20. Ke3 {[%clk 0:01:25.1]} 20... Bg5+ {[%clk 0:00:35]} 21. Kd4
{[%clk 0:01:00.3]} 21... Qd5+ {[%clk 0:00:34.2]} 22. Kc3 {[%clk 0:01:00.5]}
22... Qxc5+ {[%clk 0:00:34.4]} 23. Kb3 {[%clk 0:01:01.2]} 23... Bd7 {[%clk
0:00:30.2]} 24. Qg1 {[%clk 0:00:38.7]} 24... Be3 {[%clk 0:00:27]} 25. Qe1 {[%clk
0:00:28.2]} 25... Bc6 {[%clk 0:00:24.9]} 26. Qc3 {[%clk 0:00:21.4]} 26... Bd5+
{[%clk 0:00:24.6]} 27. Kc2 {[%clk 0:00:21.4]} 27... Bxh1 {[%clk 0:00:21.9]} 28.
Rxh1 {[%clk 0:00:19.1]} 28... Qxc3+ {[%clk 0:00:22.5]} 29. bxc3 {[%clk
0:00:18.1]} 29... f4 {[%clk 0:00:23.4]} 30. Be1 {[%clk 0:00:16.8]} 30... g3
{[%clk 0:00:23.9]} 31. Bb5+ {[%clk 0:00:15.3]} 31... Kf7 {[%clk 0:00:22.6]} 32.
Bf1 {[%clk 0:00:12.7]} 32... Rxh2+ {[%clk 0:00:21.2]} 33. Rxh2 {[%clk
0:00:12.2]} 33... gxh2 {[%clk 0:00:22.1]} 34. Bg2 {[%clk 0:00:12.9]} 34... Rg8
{[%clk 0:00:23]} 35. Bxb7 {[%clk 0:00:10.9]} 35... Rg1 {[%clk 0:00:23.9]} 36.
Bd2 {[%clk 0:00:08.2]} 36... Bxd2 {[%clk 0:00:23.3]} 37. Kxd2 {[%clk 0:00:08.5]}
37... Ra1 {[%clk 0:00:22.5]} 0-1

[Event "Early-Titled-Tuesday-Blitz-May-28-2024"]
[Site "Chess.com"]
[Date "2024.05.28"]
[Round "8"]
[White "Oleksandr_Bortnyk"]
[Black "DenLaz"]
[Result "0-1"]
[WhiteElo "3019"]
[BlackElo "3122"]
[TimeControl "180+1"]
[EndTime "9:30:01 PDT"]
[Termination "DenLaz won by resignation"]

1. e4 {[%clk 0:03:00.9]} 1... e5 {[%clk 0:02:59.4]} 2. Nf3 {[%clk 0:03:00.9]}
2... Nc6 {[%clk 0:03:00.1]} 3. Bb5 {[%clk 0:03:01.3]} 3... Nf6 {[%clk
0:03:00.3]} 4. Nc3 {[%clk 0:03:00.8]} 4... Nd4 {[%clk 0:02:58.7]} 5. Ba4 {[%clk
0:02:58.8]} 5... c6 {[%clk 0:02:55.9]} 6. d3 {[%clk 0:02:35]} 6... a5 {[%clk
0:02:53.7]} 7. a3 {[%clk 0:02:27.4]} 7... b5 {[%clk 0:02:50.3]} 8. Bb3 {[%clk
0:02:27.7]} 8... Nxb3 {[%clk 0:02:49.8]} 9. cxb3 {[%clk 0:02:28.3]} 9... d6
{[%clk 0:02:49.9]} 10. h3 {[%clk 0:02:27]} 10... Be7 {[%clk 0:02:49.9]} 11. Be3
{[%clk 0:02:27]} 11... O-O {[%clk 0:02:50.2]} 12. O-O {[%clk 0:02:27]} 12... Be6
{[%clk 0:02:41.6]} 13. Ng5 {[%clk 0:02:19.8]} 13... Bd7 {[%clk 0:02:38.4]} 14.
f4 {[%clk 0:02:13.7]} 14... exf4 {[%clk 0:02:31.1]} 15. Bxf4 {[%clk 0:02:14.2]}
15... c5 {[%clk 0:02:29.7]} 16. a4 {[%clk 0:01:09.7]} 16... b4 {[%clk
0:02:26.9]} 17. Nb5 {[%clk 0:01:09.5]} 17... Bxb5 {[%clk 0:02:08.7]} 18. axb5
{[%clk 0:01:10.4]} 18... Rb8 {[%clk 0:02:09.1]} 19. Qe2 {[%clk 0:00:58.6]} 19...
h6 {[%clk 0:01:48.3]} 20. Nf3 {[%clk 0:00:57.9]} 20... Qb6 {[%clk 0:01:43.2]}
21. e5 {[%clk 0:00:50.4]} 21... dxe5 {[%clk 0:01:33.3]} 22. Nxe5 {[%clk
0:00:50.4]} 22... c4+ {[%clk 0:01:21.7]} 23. Kh1 {[%clk 0:00:35.7]} 23... cxd3
{[%clk 0:01:05]} 24. Qxd3 {[%clk 0:00:36.6]} 24... Qxb5 {[%clk 0:01:02.2]} 25.
Qxb5 {[%clk 0:00:35.9]} 25... Rxb5 {[%clk 0:01:03.1]} 26. Nc6 {[%clk 0:00:36.7]}
26... Bc5 {[%clk 0:01:03.2]} 27. Bxh6 {[%clk 0:00:27.9]} 27... Ne4 {[%clk
0:00:56.7]} 28. Bf4 {[%clk 0:00:26]} 28... Ra8 {[%clk 0:00:37.7]} 29. Rfe1
{[%clk 0:00:26.5]} 29... Nf2+ {[%clk 0:00:37.2]} 30. Kh2 {[%clk 0:00:19.8]}
30... Nd3 {[%clk 0:00:38.1]} 31. Bg3 {[%clk 0:00:08.5]} 31... Nxe1 {[%clk
0:00:38.4]} 32. Rxe1 {[%clk 0:00:09.4]} 32... Bf8 {[%clk 0:00:36.4]} 33. Ra1
{[%clk 0:00:07.2]} 33... Ra6 {[%clk 0:00:32.6]} 34. Nb8 {[%clk 0:00:06]} 34...
Rd6 {[%clk 0:00:28.2]} 35. Kh1 {[%clk 0:00:02.6]} 35... Rxb8 {[%clk 0:00:28]}
36. Bxd6 {[%clk 0:00:02.9]} 36... Bxd6 {[%clk 0:00:28.9]} 37. Rxa5 {[%clk
0:00:03.5]} 37... Rc8 {[%clk 0:00:29.5]} 38. g4 {[%clk 0:00:03.6]} 38... Rc2
{[%clk 0:00:29.8]} 39. Rd5 {[%clk 0:00:04.1]} 39... Bf8 {[%clk 0:00:29.8]} 40.
Rd3 {[%clk 0:00:04.4]} 40... Rxb2 {[%clk 0:00:30.4]} 41. h4 {[%clk 0:00:05.3]}
41... Rc2 {[%clk 0:00:31]} 42. h5 {[%clk 0:00:05.5]} 42... Rc3 {[%clk
0:00:31.7]} 43. Rd7 {[%clk 0:00:06.1]} 43... Rxb3 {[%clk 0:00:32.3]} 44. g5
{[%clk 0:00:06.8]} 44... Rh3+ {[%clk 0:00:32.7]} 45. Kg2 {[%clk 0:00:07.1]}
45... Rxh5 {[%clk 0:00:33.4]} 46. g6 {[%clk 0:00:08]} 46... Rg5+ {[%clk
0:00:33.5]} 0-1